[Event "French-ch Youth U18 2022"]
[Site "Agen"]
[Date "2022.04.20"]
[Round "5.4"]
[White "Mathieu, Phileas"]
[Black "Roux, Baptiste"]
[Result "1-0"]
[ECO "B30"]
[WhiteElo "2323"]
[BlackElo "2137"]
[Annotator "TA"]
[PlyCount "73"]
[EventDate "2022.04.17"]
[EventType "swiss"]
[EventCountry "FRA"]
[SourceTitle "playchess.com"]
[Source "ChessBase"]
[SourceQuality "1"]
[TimeControl "5400+30"]

{[%evp 19,73,29,57,21,12,0,0,0,49,6,62,62,75,17,52,62,83,75,97,103,108,64,69,43,118,103,140,152,167,79,72,73,55,89,68,43,77,72,258,269,873,825,852,822,1722,1675,1913,1778,29979,29980,29981,29982,29985,29986,29987,29988]} 1. e4 {[%emt 0:00:02]} c5 {[%emt 0:01:33]} 2. Nf3 {[%emt 0:01:40]} Nc6 {[%emt 0:00:40]} 3. g3 {[%emt 0:07:07]} g6 {[%emt 0:07:48]} 4. Bg2 {[%emt 0:00:52]} Bg7 {[%emt 0:00:08]} 5. O-O {[%emt 0:00:21]} e6 {[%emt 0:01:21]} 6. c3 {[%emt 0:01:13]} Nge7 {[%emt 0:01:34]} 7. Re1 {[%emt 0:10:54]} O-O {[%emt 0:05:33]} 8. d4 {[%emt 0:05:03]} cxd4 {[%emt 0:00:24]} 9. cxd4 {[%emt 0:00:01]} d5 {[%emt 0:01:32]} 10. e5 {[%emt 0:00:04]} a6 {[%emt 0:08:28] [#]} 11. Bg5 $146 {[%emt 0:14:43] A04: Unusual lines after 1 Nf3 and King's Indian Attack.} ({Predecessor:} 11. Nc3 Bd7 12. h4 h5 13. Bg5 b5 14. Qd2 Qb6 15. Bh3 Kh7 16. Rad1 Rac8 17. Bf6 Ng8 18. Ng5+ Kh8 19. Nxd5 {1-0 (36) Loureiro,A (2129)-Reis Junior,E (2039) Sao Paulo 2017}) 11... h6 {[%emt 0:08:33]} 12. Be3 {[%emt 0:04:38]} Bd7 {[%emt 0:02:56]} 13. Nc3 {[%emt 0:02:00] The position is equal.} b5 {[%emt 0:05:15]} (13... Nf5 $11) 14. g4 {[%emt 0:06:23]} Rc8 {[%emt 0:03:25]} ({Better is} 14... f6 $11) 15. Qd2 $14 {[%emt 0:01:55]} Kh7 {[%emt 0:00:38]} 16. b3 {[%emt 0:01:39]} (16. Ne2 $16) 16... Qa5 {[%emt 0:06:27]} 17. Rec1 {[%emt 0:05:12]} Rc7 {[%emt 0:11:19]} 18. a3 {[%emt 0:00:58]} Rfc8 {[%emt 0:02:37]} 19. b4 {[%emt 0:01:16]} Qb6 {[%emt 0:00:09]} 20. Nd1 {[%emt 0:00:58][%cal Bc3d1,Bd1b2,Bb2d3][%mdl 32]} Na7 {[%emt 0:04:35]} 21. Rc5 {[%emt 0:03:02]} Ng8 {[%emt 0:07:55]} (21... Rxc5 $14 22. bxc5 (22. dxc5 Qc7 $11) 22... Qd8) 22. Nb2 {[%emt 0:02:38]} Bf8 {[%emt 0:10:47]} 23. Nd3 {[%emt 0:00:15]} Bxc5 {[%emt 0:00:16]} 24. dxc5 {[%emt 0:00:12]} ({Don't take} 24. bxc5 $6 Qb7 $14) (24. Nxc5 $18 {and White stays clearly on top. Threatens to win with h4.} Nc6 25. h4) 24... Qb8 $16 {[%emt 0:00:57]} 25. h4 {[%emt 0:04:32][%cal Bh2h4,Bh4h5][%mdl 1056] White has strong compensation. &Bianco is much more active. The black rooks are badly placed.} Rf8 {[%emt 0:04:08]} 26. h5 {[%emt 0:07:00] aiming for g5.} g5 {[%emt 0:02:18]} 27. Nd4 {[%emt 0:01:26]} Nc6 {[%emt 0:00:23]} 28. Rf1 {[%emt 0:00:37]} f6 $2 {[%emt 0:01:13] A mistake that costs the game.} (28... f5 $16 {was called for.}) 29. f4 $18 {[%emt 0:02:47]} fxe5 $2 {[%emt 0:00:16]} (29... gxf4 30. Nxf4 Nxe5) 30. Nxc6 {[%emt 0:00:19][%mdl 64] [#] Remove Defender} Bxc6 {[%emt 0:00:58]} 31. Nxe5 {[%emt 0:00:12]} Be8 {[%emt 0:00:31]} 32. Bd4 {[%emt 0:03:08] Hoping for Qc2+.} Nf6 {[%emt 0:00:31]} 33. fxg5 {[%emt 0:02:59]} hxg5 {[%emt 0:00:11]} 34. Qxg5 {[%emt 0:01:40] White mates.} Rg7 {[%emt 0:00:39]} 35. Ng6 {[%emt 0:00:47]} Bxg6 {[%emt 0:00:16]} 36. Rxf6 {[%emt 0:01:03]} Rxf6 {[%emt 0:00:37]} 37. Qxf6 {[%emt 0:00:22] Weighted Error Value: White=0.16 (very precise) /Black=0.57} 1-0

[Event "French-ch Youth U18 2022"]
[Site "Agen"]
[Date "2022.04.20"]
[Round "5.5"]
[White "Blanquet, Camille"]
[Black "Sumarriva Paulin, Laura"]
[Result "1-0"]
[ECO "A14"]
[WhiteElo "1928"]
[BlackElo "1925"]
[Annotator "TA"]
[PlyCount "55"]
[EventDate "2022.04.17"]
[EventType "swiss"]
[EventCountry "FRA"]
[SourceTitle "playchess.com"]
[Source "ChessBase"]
[SourceQuality "1"]
[TimeControl "5400+30"]

{[%evp 19,55,89,83,91,107,110,118,51,35,68,68,64,129,128,137,119,158,150,151,143,246,243,238,249,308,164,478,479,374,330,5685,1073,975,650,1089,912,1524,1140]} 1. c4 {[%emt 0:00:11]} e6 {[%emt 0:00:31]} 2. Nf3 {[%emt 0:00:39]} d5 {[%emt 0:00:51]} 3. g3 {[%emt 0:00:23]} Nf6 {[%emt 0:01:18]} 4. Bg2 {[%emt 0:00:14]} Be7 {[%emt 0:03:03]} 5. O-O {[%emt 0:01:10]} O-O {[%emt 0:00:16]} 6. d4 {[%emt 0:00:33]} b6 {[%emt 0:02:17]} 7. cxd5 {[%emt 0:02:22]} exd5 {[%emt 0:00:31]} 8. Nc3 {[%emt 0:01:31]} Bb7 {[%emt 0:00:39]} 9. Ne5 {[%emt 0:01:05]} Nbd7 {[%emt 0:05:32]} 10. Qa4 {[%emt 0:01:16]} Nb8 {[%emt 0:13:30]} 11. Bf4 {[%emt 0:09:35] &Bianco is much more active. has lost popularity (11.Rd1). E18: Queen's Indian: Old Main Line (4 g3 Bb7 5 Bg2 Be7 6 0-0 0-0 7 Nc3).} Ne4 {[%emt 0:07:05]} 12. Nxe4 {[%emt 0:12:20]} dxe4 {[%emt 0:00:59] [#]} 13. Qc2 $146 {[%emt 0:00:18]} (13. Rac1 $16) ({Predecessor:} 13. Rfd1 Bd5 14. Rac1 f6 15. Nc4 c6 16. Nd2 b5 17. Qc2 f5 18. Nf3 exf3 19. exf3 {0-1 (26) Chu,R (2207)-Putri,R (1897) Chess.com INT 2021}) 13... f6 $14 {[%emt 0:10:09]} 14. Ng4 {[%emt 0:09:12]} ({But not} 14. Bxe4 Bxe4 15. Qxe4 fxe5 $1 16. Qxa8 exf4 $15) (14. Nc4 $5 {[%cal Rg2e4]}) 14... f5 {[%emt 0:12:29]} 15. Bxc7 {[%emt 0:02:41]} Qxd4 {[%emt 0:01:19] [#]} ({Black should play} 15... Qd7 $14) 16. Rfd1 $1 $16 {[%emt 0:08:02]} Qc5 {[%emt 0:10:54]} (16... Qb4 17. Ne3) 17. Qb3+ {[%emt 0:00:44]} Kh8 {[%emt 0:00:15] [#]} 18. Rac1 $1 {[%emt 0:08:25]} Qb4 {[%emt 0:01:31]} 19. Qe6 {[%emt 0:03:50][%cal Og4h6] White threatens Nh6! and mate.} fxg4 {[%emt 0:08:06]} (19... Nc6 $16) 20. a3 $18 {[%emt 0:03:51][%mdl 64] Deflection} Qb5 {[%emt 0:10:52] Threatens to win with ...Nc6.} 21. Qxe7 {[%emt 0:00:38][%cal Re7f8]} Re8 {[%emt 0:04:58]} 22. Qf7 $40 {[%emt 0:02:53][%mdl 128] White attacks with force.} (22. Rd8 $142 Na6 23. Be5 $1 {[%mdl 512]} Qxe5 24. Qxe5 Raxd8 25. Qg5) 22... Na6 $2 {[%emt 0:02:45]} (22... Nc6) 23. Bf4 {[%emt 0:04:08]} Bc6 {[%emt 0:00:58]} 24. Rd6 {[%emt 0:02:51]} Rac8 {[%emt 0:00:58] [#]} (24... Rf8 25. Qe7 Rfe8) 25. Rdxc6 $1 {[%emt 0:00:37][%mdl 512]} Rcd8 {[%emt 0:00:33]} 26. Qc4 {[%emt 0:01:17]} Qa5 {[%emt 0:00:28]} 27. Bxe4 {[%emt 0:01:43]} b5 {[%emt 0:00:34]} 28. Qc2 {[%emt 0:00:33] Weighted Error Value: White=0.38/Black=0.45} 1-0

[Event "French-ch Youth U18 2022"]
[Site "Agen"]
[Date "2022.04.20"]
[Round "5.6"]
[White "Lordier, Sophia"]
[Black "Tomasi, Elise"]
[Result "0-1"]
[ECO "D00"]
[WhiteElo "1725"]
[BlackElo "1988"]
[Annotator "TA"]
[PlyCount "112"]
[EventDate "2022.04.17"]
[EventType "swiss"]
[EventCountry "FRA"]
[SourceTitle "playchess.com"]
[Source "ChessBase"]
[SourceQuality "1"]
[TimeControl "5400+30"]

{[%evp 9,111,8,10,10,20,8,18,8,8,0,8,-12,6,-3,14,0,0,0,0,-4,35,-30,-31,-29,0,-14,0,-8,-9,-22,0,0,0,-10,45,51,165,9,21,31,86,36,63,77,68,68,143,162,168,166,289,297,270,174,233,121,279,157,167,93,113,0,163,92,78,76,82,77,124,125,163,161,156,145,163,155,284,38,94,97,176,134,247,0,78,0,0,0,0,0,0,0,0,0,0,-2740,-2326,-29996,-29997,-29997,-29998,-29998,-29999,-29999]} 1. d4 {[%emt 0:00:02]} d5 {[%emt 0:00:25]} 2. Bf4 {[%emt 0:00:44]} e6 {[%emt 0:01:13]} 3. Nf3 {[%emt 0:00:39]} Bd6 {[%emt 0:01:15]} 4. e3 {[%emt 0:02:12]} Nf6 {[%emt 0:03:00]} 5. Nbd2 {[%emt 0:01:54]} O-O {[%emt 0:01:53]} 6. Bd3 {[%emt 0:03:44] D02: 1 d4 d5 2 Nf3 sidelines, including 2...Nf6 3 g3 and 2...Nf6 3 Bf4.} c5 {[%emt 0:09:25]} 7. c3 {[%emt 0:02:55]} b6 {[%emt 0:11:33]} 8. Qe2 {[%emt 0:04:09] The position is equal.} Bb7 {[%emt 0:02:58]} 9. Ne5 {[%emt 0:10:46]} Qc7 {[%emt 0:04:59] [#]} 10. Qf3 $146 {[%emt 0:12:41]} ({Predecessor:} 10. Bg3 Nbd7 11. f4 Ne4 12. Nxd7 Qxd7 13. Nxe4 dxe4 14. Bc4 Qc7 15. O-O Rac8 16. Bb3 {1-0 (42) Kowalski,I (2355)-Fiedorek,M (2176) Pokrzywna 2020}) 10... Nbd7 {[%emt 0:29:03]} 11. Nxd7 {[%emt 0:01:15]} Nxd7 {[%emt 0:05:57]} 12. Qh3 {[%emt 0:12:02][%csl Gd3][%cal Rh3h7]} g6 {[%emt 0:01:41]} 13. Bh6 {[%emt 0:06:37]} Rfe8 {[%emt 0:01:32]} 14. O-O {[%emt 0:04:03]} e5 {[%emt 0:05:03]} 15. dxe5 {[%emt 0:02:54]} (15. f4 $14) 15... Nxe5 $11 {[%emt 0:00:59]} 16. Bb5 {[%emt 0:06:50] [#]} Bc8 $1 {[%emt 0:03:32]} 17. Qh4 {[%emt 0:01:40]} Bd7 {[%emt 0:00:39]} 18. Bxd7 {[%emt 0:01:56]} (18. Qf6 {keeps more tension.} Bf8 19. Bxf8 Rxf8 20. a4) 18... Nxd7 {[%emt 0:00:08]} 19. Rae1 {[%emt 0:05:12]} f5 {[%emt 0:04:35]} 20. c4 $40 {[%emt 0:01:29][%mdl 128] White is up to no good.} Ne5 {[%emt 0:03:57]} 21. cxd5 {[%emt 0:06:15]} Ng4 {[%emt 0:00:01]} (21... Nd3 $11) 22. Nf3 $14 {[%emt 0:03:34][%cal Oh6f4]} Re4 {[%emt 0:02:08] Against Bf4} (22... Nxh6 $14 23. Qxh6 Bf8) 23. Qh3 $2 {[%emt 0:02:10]} (23. Bf4 $1 $18) 23... Rae8 {[%emt 0:02:55]} 24. Rd1 {[%emt 0:03:31]} b5 {[%emt 0:00:59]} ({Black should try} 24... Qd7 $14) 25. Bg5 {[%emt 0:01:35]} ({White should play} 25. Ng5 $16) 25... Kg7 {[%emt 0:00:25]} 26. g3 {[%emt 0:00:08]} h6 {[%emt 0:01:23]} 27. Bf4 {[%emt 0:00:04]} Bxf4 (27... g5 $14) 28. gxf4 $16 {[%emt 0:00:10]} Rd8 {[%emt 0:01:55]} 29. Qg3 {[%emt 0:00:27] Strongly threatening Nh4.} Rd6 {[%emt 0:00:39]} (29... Kh7 $142 30. Qh3 (30. h3 Nf6 $16) 30... Kg8) 30. h3 $18 {[%emt 0:00:12]} Nf6 {[%emt 0:00:05]} 31. Ne5 {[%emt 0:00:02]} Nd7 {[%emt 0:01:02]} (31... Nh5 $142 32. Qg2 Kh7) 32. Rd2 {[%emt 0:01:10]} (32. f3 $18 Ra4 33. e4) 32... Qd8 $2 {[%emt 0:00:19]} (32... Qa5 $16 33. Rdd1 Qb4) 33. Rfd1 {[%emt 0:00:32]} (33. f3 $18 Ra4 34. b3) 33... Qe8 {[%emt 0:00:16][%cal Rd7e5]} 34. Nc6 {[%emt 0:02:14]} (34. f3 $18 Rxe3 35. Qf2 Rxe5 36. fxe5 Qxe5 37. f4) 34... Nf6 {[%emt 0:00:56]} 35. Ne5 {[%emt 0:01:22]} (35. Nxa7 Ra4 36. Nc6 Ne4 $17) (35. b3 $16) 35... Nd7 {[%emt 0:00:13][%cal Rd7e5] [#]} 36. Nxd7 {[%emt 0:00:44]} (36. f3 $1 $18 {[%cal Rf3e4]} Rxe3 37. Qf2 Rxe5 38. fxe5 Qxe5 39. f4) 36... Qxd7 $16 {[%emt 0:00:10]} 37. Kf1 {[%emt 0:00:14]} b4 {[%emt 0:00:24]} 38. Qf3 {[%emt 0:00:10]} Kf6 {[%emt 0:01:05]} (38... a5 $142) 39. Qe2 {[%emt 0:00:12]} g5 {[%emt 0:00:29]} 40. Qh5 {[%emt 0:00:47]} Qg7 {[%emt 0:00:16]} 41. fxg5+ {[%emt 0:00:36]} hxg5 {[%emt 0:00:25]} 42. Rc1 {[%emt 0:00:01]} c4 {[%emt 0:00:53] [#]} (42... Rh4 $16 {might work better.} 43. Qf3 Qh8) 43. Qf3 $2 {[%emt 0:01:29]} (43. Rd4 $1 $18 {[%cal Rd4e4]}) 43... g4 {[%emt 0:00:35]} ({Better is} 43... Qb7 $14) 44. hxg4 {[%emt 0:00:06]} Rxg4 {[%emt 0:00:09]} (44... Qxg4 $16 {keeps fighting.} 45. Qxg4 fxg4) 45. Ke2 {[%emt 0:00:07]} Qc7 {[%emt 0:00:30]} (45... a5 $16 46. Rdc2 Qg8) 46. Rdc2 $2 {[%emt 0:00:50]} (46. Qh1 $18) 46... Qc5 {[%emt 0:00:20]} (46... c3 $1 $11 47. Qh1 Qc4+ 48. Ke1 Rh4) 47. Rd1 {[%emt 0:00:37]} (47. Qh1 $16 Kg7 48. Rg1 (48. f3 Rh6 $11)) 47... Qb5 $11 {[%emt 0:00:48]} ({But not} 47... c3 48. Rd3 $16) 48. Qh3 {[%emt 0:00:52] And now Qh8+ would win.} c3+ {[%emt 0:00:50]} 49. Kf3 {[%emt 0:00:01] Black must now prevent Qh6+.} Qc4 {[%emt 0:00:23]} (49... Rxd5 50. Qh8+ Kf7 51. Rh1) 50. Qh6+ {[%emt 0:00:19]} Ke7 {[%emt 0:00:32] The board is on fire.} 51. Qh7+ {[%emt 0:00:22]} Ke8 {[%emt 0:00:34] ( -> ...Qe4+)} 52. Qxf5 {[%emt 0:00:02][%mdl 8192] [#]} (52. Rd4 $11 Rxd4 53. Qg8+ Ke7 54. Qg7+ Kd8 55. Qxd4 Qxd4 56. exd4) 52... Rf6 $3 $19 {[%mdl 576] Deflection} 53. Qxf6 {[%emt 0:01:26]} (53. Rd4 Rxf5+) 53... Qe4+ {[%emt 0:00:07] Black mates.} 54. Ke2 {[%emt 0:00:23]} Qxc2+ {[%emt 0:00:04]} 55. Rd2 {[%emt 0:00:32]} Qxd2+ {[%emt 0:00:11]} 56. Kf3 {[%emt 0:00:00]} Qd1# {[%emt 0:00:13] Both players deserved the win here.  Weighted Error Value: White=0.59/Black=0.29 (precise)} 0-1

[Event "French-ch Youth U18 2022"]
[Site "Agen"]
[Date "2022.04.20"]
[Round "5.7"]
[White "Moracchini, Margaux"]
[Black "Courjal, Pauline"]
[Result "1-0"]
[ECO "B50"]
[WhiteElo "1994"]
[BlackElo "1976"]
[Annotator "TA"]
[PlyCount "59"]
[EventDate "2022.04.17"]
[EventType "swiss"]
[EventCountry "FRA"]
[SourceTitle "playchess.com"]
[Source "ChessBase"]
[SourceQuality "1"]
[TimeControl "5400+30"]

{[%evp 9,59,16,18,16,64,60,64,58,46,16,34,27,23,-21,0,0,33,-40,60,8,16,16,8,4,62,0,22,-29,52,-21,7,0,172,164,194,200,364,372,512,504,507,505,612,608,635,626,935,879,1233,1184,1100,1057]} 1. e4 {[%emt 0:00:03]} c5 {[%emt 0:00:04]} 2. Nf3 {[%emt 0:00:15]} d6 {[%emt 0:00:06]} 3. Nc3 {[%emt 0:01:06]} Nf6 {[%emt 0:00:10]} 4. d4 {[%emt 0:00:24]} cxd4 {[%emt 0:00:06]} 5. Qxd4 {[%emt 0:00:25]} a6 {[%emt 0:00:06]} 6. Bg5 {[%emt 0:04:45] B53: Sicilian: 2...d6: Lines with Qxd4.} h6 {[%emt 0:12:10] [#]} (6... e6) (6... Nc6 $11 7. Qd3 h6 8. Bxf6 gxf6) 7. Bxf6 $146 {[%emt 0:08:21]} ({Predecessor:} 7. Bh4 g5 8. Bg3 Bg7 9. O-O-O Nc6 10. Qd2 Be6 11. h4 g4 12. Nd4 Nxd4 13. Qxd4 {0-1 (46) Durnev,V (2043)-Roschupkin,V Rodatychi 2006}) 7... gxf6 {[%emt 0:00:07]} 8. Bc4 {[%emt 0:08:33] &Bianco is more active. White is slightly better.} e6 {[%emt 0:02:38]} 9. a4 {[%emt 0:03:03]} Nc6 {[%emt 0:07:53]} 10. Qd2 {[%emt 0:02:04]} h5 {[%emt 0:12:09]} 11. Rd1 {[%emt 0:03:34]} Rg8 {[%emt 0:06:34]} 12. O-O {[%emt 0:03:06]} Qc7 {[%emt 0:12:45]} 13. Ne2 {[%emt 0:10:34]} (13. Rb1 $14) 13... Rg4 {[%emt 0:10:54]} (13... Ne5 $15 14. Nxe5 fxe5) 14. Bd3 {[%emt 0:04:40]} (14. Nf4 $14) 14... Ne5 {[%emt 0:05:46] [#] ...Nxf3+ is the strong threat.} 15. Nfd4 {[%emt 0:07:56]} Bd7 {[%emt 0:01:05]} 16. h3 {[%emt 0:03:30]} Rg6 {[%emt 0:01:16]} (16... Rg7 $11) 17. b3 {[%emt 0:08:00]} (17. f4) ({White should try} 17. f4 $14) 17... Bh6 {[%emt 0:00:17]} 18. Qc3 {[%emt 0:14:39]} (18. Qb4 $142) 18... Qc5 {[%emt 0:02:08]} (18... Qxc3 $11 19. Nxc3 Ke7) 19. f4 {[%emt 0:03:45]} (19. Qe1) ({Better is} 19. Qe1 $14) 19... Nxd3 {[%emt 0:01:01]} 20. Rxd3 {[%emt 0:01:30]} Qb6 {[%emt 0:01:01]} (20... Rg8 $11 {and Black is okay.}) 21. Kh1 $18 {[%emt 0:00:54] Black must now prevent f5.} Rc8 {[%emt 0:00:46]} 22. Qe1 {[%emt 0:02:35] Hoping for f5.} Bc6 $2 {[%emt 0:02:40]} (22... Kf8 23. Ng3 h4) 23. Nxc6 {[%emt 0:02:02]} Qxc6 {[%emt 0:04:05] [#]} 24. Nd4 $1 {[%emt 0:00:19] White is clearly winning.} Qc5 {[%emt 0:10:40]} 25. f5 {[%emt 0:01:29]} Rg7 {[%emt 0:00:08]} 26. fxe6 {[%emt 0:00:45]} Qg5 {[%emt 0:00:05][%csl Gg7][%cal Rg5g2]} 27. Qf2 {[%emt 0:01:26] aiming for Nf5.} Rg6 {[%emt 0:04:38]} 28. Nf5 {[%emt 0:01:21]} Bf8 {[%emt 0:00:05]} 29. exf7+ {[%emt 0:01:40]} Kxf7 {[%emt 0:00:08]} 30. Rg3 {[%emt 0:00:15] Weighted Error Value: White=0.25 (precise) /Black=0.57} 1-0

[Event "French-ch Youth U18 2022"]
[Site "Agen"]
[Date "2022.04.20"]
[Round "5.8"]
[White "Bellahcene, Sofia"]
[Black "Atli, Celine"]
[Result "1-0"]
[ECO "B34"]
[WhiteElo "1813"]
[BlackElo "1431"]
[Annotator "NA RC COMBH"]
[PlyCount "99"]
[EventDate "2022.04.17"]
[EventType "swiss"]
[EventCountry "FRA"]
[SourceTitle "playchess.com"]
[Source "ChessBase"]
[SourceQuality "1"]
[TimeControl "5400+30"]

1. e4 {[%emt 0:00:04]} c5 {[%emt 0:00:06]} 2. Nf3 {[%emt 0:00:15]} Nc6 {[%emt 0:00:14]} 3. d4 {[%emt 0:00:19]} cxd4 {[%emt 0:00:13]} 4. Nxd4 {[%emt 0:00:09]} g6 {[%emt 0:00:22]} 5. Nc3 {[%emt 0:00:21]} Bg7 {[%emt 0:00:16]} 6. Nde2 {[%emt 0:00:09]} Nf6 {[%emt 0:03:28]} 7. g3 {[%emt 0:00:38]} O-O {[%emt 0:04:40]} 8. Bg2 {[%emt 0:00:11]} Rb8 {[%emt 0:01:56]} 9. a4 {[%emt 0:00:08]} b6 {[%emt 0:03:30]} 10. O-O {[%emt 0:02:28]} Bb7 $11 {[%emt 0:00:40]} 11. Bf4 {[%emt 0:05:11]} d6 {[%emt 0:02:11]} 12. Qd2 {[%emt 0:00:54]} Ng4 {[%emt 0:06:23]} 13. h3 {[%emt 0:02:13]} Nge5 {[%emt 0:00:33]} 14. b3 {[%emt 0:00:16]} Re8 {[%emt 0:08:35]} 15. Rad1 {[%emt 0:03:23]} Nb4 {[%emt 0:06:03]} 16. Nd5 {[%emt 0:04:53]} Nbc6 {[%emt 0:05:02]} 17. Bh6 {[%emt 0:05:01]} Qc8 {[%emt 0:01:25]} 18. Bxg7 {[%emt 0:02:13]} Kxg7 {[%emt 0:00:09]} 19. f4 {[%emt 0:00:29]} Nd7 {[%emt 0:00:34]} 20. f5 {[%emt 0:04:44]} Nce5 {[%emt 0:01:54]} 21. Nef4 {[%emt 0:04:38]} Qc5+ {[%emt 0:03:12]} 22. Kh2 {[%emt 0:02:20]} Rbc8 {[%emt 0:06:22]} 23. c4 {[%emt 0:05:17]} Bxd5 {[%emt 0:03:15]} 24. Nxd5 {[%emt 0:03:55]} a6 {[%emt 0:02:30]} 25. Rc1 {[%emt 0:04:48]} Qc6 {[%emt 0:05:21]} 26. g4 {[%emt 0:13:37]} Nf6 {[%emt 0:04:26]} 27. Nxf6 {[%emt 0:04:28]} exf6 {[%emt 0:00:05]} 28. Rcd1 {[%emt 0:00:46]} Rcd8 {[%emt 0:00:14]} 29. g5 {[%emt 0:04:16]} gxf5 {[%emt 0:06:49]} 30. gxf6+ {[%emt 0:02:05]} Kh8 {[%emt 0:00:10]} 31. Rxf5 {[%emt 0:01:30]} Qa8 {[%emt 0:09:04]} 32. Qd5 {[%emt 0:11:19]} Qxd5 {[%emt 0:02:30]} 33. Rxd5 {[%emt 0:01:15]} Re6 {[%emt 0:00:52]} 34. a5 {[%emt 0:06:07]} Rb8 {[%emt 0:02:16]} 35. axb6 {[%emt 0:02:46]} Rxb6 {[%emt 0:00:10]} 36. c5 {[%emt 0:00:29]} Rc6 {[%emt 0:02:31]} 37. Rxd6 {[%emt 0:01:52]} Rcxd6 {[%emt 0:01:06]} 38. cxd6 {[%emt 0:00:02]} Nd7 {[%emt 0:00:16]} 39. e5 {[%emt 0:00:57]} Rxe5 {[%emt 0:01:54]} 40. Rxe5 {[%emt 0:00:07]} Nxe5 {[%emt 0:00:04]} 41. Bb7 {[%emt 0:00:09]} a5 {[%emt 0:00:06]} 42. Bc8 {[%emt 0:00:19]} h6 {[%emt 0:02:05]} 43. Kg3 {[%emt 0:00:17]} Kh7 {[%emt 0:00:20]} 44. Bf5+ {[%emt 0:00:11]} Kg8 {[%emt 0:00:08]} 45. d7 {[%emt 0:00:06]} Nc6 {[%emt 0:00:12]} 46. Kg4 {[%emt 0:00:15]} Kh8 {[%emt 0:00:43]} 47. Kh5 {[%emt 0:00:23]} Nd8 {[%emt 0:00:45]} 48. Kxh6 {[%emt 0:00:15]} Nc6 {[%emt 0:00:10]} 49. Kg5 {[%emt 0:00:08]} Nd8 {[%emt 0:01:35]} 50. Kf4 1-0

[Event "French-ch Youth U18 2022"]
[Site "Agen"]
[Date "2022.04.21"]
[Round "6.1"]
[White "Decuigniere, Tom"]
[Black "Girel, Joseph"]
[Result "1/2-1/2"]
[ECO "A18"]
[WhiteElo "2292"]
[BlackElo "2394"]
[Annotator "TA"]
[PlyCount "73"]
[EventDate "2022.04.17"]
[EventType "swiss"]
[EventCountry "FRA"]
[SourceTitle "playchess.com"]
[Source "ChessBase"]
[SourceQuality "1"]
[TimeControl "5400+30"]

{[%evp 14,73,25,23,20,-19,-25,-19,0,0,0,14,37,0,0,-51,-52,-48,-60,-51,-60,-53,17,16,16,-19,-25,-22,-19,-16,0,0,0,0,0,0,0,0,0,0,0,0,0,-2,0,-3,0,-3,-4,-8,0,0,0,0,0,0,4,4,4,4,4,0]} 1. c4 {[%emt 0:00:01]} e6 {[%emt 0:05:57]} 2. Nc3 {[%emt 0:00:22]} Nf6 {[%emt 0:00:17]} 3. e4 {[%emt 0:00:18]} d5 {[%emt 0:00:20]} 4. e5 {[%emt 0:00:25]} d4 {[%emt 0:00:11]} 5. exf6 {[%emt 0:00:08]} dxc3 {[%emt 0:00:13]} 6. bxc3 {[%emt 0:00:07]} Qxf6 {[%emt 0:00:13]} 7. d4 {[%emt 0:00:11][%cal Bd2d4,Bd4d5][%mdl 32]} e5 {[%emt 0:01:00]} 8. Nf3 {[%emt 0:00:16]} Nc6 {[%emt 0:04:05][%cal Bb8c6,Bc6e7,Be7f5,Bf5e3][%mdl 32] A18: English Opening: Flohr-Mikenas System (1 c4 Nf6 2 Nc3 e6 3 e4).} 9. Qe2 {[%emt 0:17:08]} Bg4 $1 {[%emt 0:02:37] And now ...0-0-0 would win.} 10. d5 {[%emt 0:01:21]} Bxf3 {[%emt 0:01:53]} 11. gxf3 {[%emt 0:00:22]} Ne7 {[%emt 0:09:54]} 12. Rb1 {[%emt 0:04:54]} O-O-O {[%emt 0:06:17] [#]} 13. Be3 $146 {[%emt 0:09:26]} (13. Qe4 $5 {[%cal Rf1h3]} Qg6 14. h4 $11) ({Predecessor:} 13. Qb2 b6 14. Rg1 Qd6 15. a4 Kb8 16. a5 Nc8 17. Be3 g6 18. c5 Qxd5 19. cxb6 cxb6 20. axb6 axb6 21. Bxb6 Ba3 22. Ba7+ {1-0 (22) Perez Fungueiro,M (2295)-Adla,D (2470) Nigran 1998}) 13... Kb8 {[%emt 0:07:16]} 14. Bg2 {[%emt 0:14:48]} ({Of course not} 14. Qb2 b6 $17) ({White should play} 14. h4 $1 $11) 14... Nf5 15. c5 {[%emt 0:08:35]} ({Don't play} 15. Qb2 b6 16. O-O Nxe3 17. fxe3 Bc5 $17) 15... Nxe3 {[%emt 0:08:39]} 16. Qxe3 {[%cal Od5d6] Threatens to win with d6!} Rxd5 17. f4 $1 {[%emt 0:02:17] [#]} e4 {[%emt 0:29:43]} ({Better is} 17... Bxc5 $1 $15 18. Rxb7+ Kc8) 18. Bxe4 $11 {[%emt 0:03:35]} Bxc5 {[%emt 0:02:07] [#]} 19. Rxb7+ $1 {[%emt 0:00:08]} Kc8 {[%emt 0:00:10]} 20. Qh3+ {[%emt 0:00:28]} Kxb7 {[%emt 0:00:43] The position is equal.} 21. Bxd5+ {[%emt 0:00:31]} c6 {[%emt 0:01:00]} 22. Qd7+ {[%emt 0:02:57]} Kb8 {[%emt 0:00:01]} 23. Qxc6 {[%emt 0:00:30][%csl Gd5][%cal Rc6b7]} Qxc3+ {[%emt 0:01:55]} 24. Kf1 {[%emt 0:00:34][%csl Gd5][%cal Rc6b7]} Qd3+ {[%emt 0:00:12]} 25. Kg2 {[%emt 0:00:06][%csl Gd5][%cal Rc6b7] Chess con chili.} Qg6+ {[%emt 0:00:12]} 26. Qxg6 {[%emt 0:00:04]} fxg6 {[%emt 0:00:31][%cal Bf7g6,Bg6g5][%mdl 4128] Endgame KRB-KRB} 27. Rc1 {[%emt 0:04:38]} Bb6 {[%emt 0:00:21]} 28. Bc4 {[%emt 0:01:56]} Rc8 {[%emt 0:03:18]} 29. Rc2 {[%emt 0:00:43]} Rc5 {[%emt 0:00:14]} 30. Bb3 {[%emt 0:01:27]} Rf5 {[%emt 0:02:52]} 31. Rc4 {[%emt 0:00:19]} g5 {[%emt 0:02:13]} 32. Bc2 {[%emt 0:05:01]} Rxf4 {[%emt 0:00:10]} 33. Rxf4 {[%emt 0:00:03]} gxf4 {[%emt 0:00:07]} 34. Bxh7 {[%emt 0:00:04]} Kc7 {[%emt 0:00:10]} 35. Kf3 {[%emt 0:00:08]} Kd6 {[%emt 0:00:07]} 36. Kxf4 {[%emt 0:00:07]} Bxf2 {[%emt 0:00:05]} 37. Ke4 {Weighted Error Value: White=0.09 (flawless) /Black=0.07 (flawless)} 1/2-1/2